bitfinex-derivatives/quotes_BTCF0:USTF0_20251119
["timestamp","ask_amount","ask_price","bid_price","bid_amount"]
[1763571801760,0.15286672,90002.0,90001.0,0.00219803]
[1763571801960,0.00116672,90002.0,90001.0,0.04841803]
[1763571802276,0.10932672,90002.0,90001.0,0.04841803]
[1763571802578,0.13160672,90002.0,90001.0,0.00219803]
[1763571802770,0.10932672,90002.0,90001.0,0.02509803]
[1763571803277,0.11032672,90002.0,90001.0,0.04841803]
[1763571803874,0.11032672,90002.0,90001.0,0.02509803]
[1763571804075,0.15382672,90002.0,90001.0,0.00219803]
[1763571804465,0.11032672,90002.0,89992.0,0.02306672]
[1763571804666,0.10932672,90002.0,89993.0,0.00219803]
[1763571804869,0.11032672,90002.0,89993.0,0.00219803]
[1763571805269,0.04356,89994.0,89993.0,0.00219803]
[1763571806064,0.04356,89994.0,89992.0,0.00016672]
[1763571806065,0.04303,89993.0,89992.0,0.00016672]
[1763571806471,0.04303,89993.0,89992.0,0.00236475]
[1763571806671,0.3608,89998.0,89997.0,0.04456]
[1763571806979,0.3608,89998.0,89997.0,0.04675803]
[1763571807977,0.10812,90001.0,90000.0,0.04456]
[1763571808176,0.10812,90001.0,90000.0,0.04675803]
[1763571808878,0.10812,90001.0,90000.0,0.02367803]
[1763571809275,0.15215,90001.0,90000.0,0.00219803]
[1763571809866,0.51295,90001.0,90000.0,0.00219803]
[1763571810075,0.51295,90001.0,89992.0,0.00016672]
[1763571810076,0.04303,89993.0,89992.0,0.00016672]
[1763571810476,0.02175,89974.0,89973.0,0.3608]
[1763571810673,0.15115,89974.0,89973.0,0.36299803]
[1763571810871,0.15115,89974.0,89973.0,0.3608]
[1763571811075,0.15115,89974.0,89963.0,0.3608]
[1763571811076,0.02175,89964.0,89963.0,0.3608]
[1763571811379,0.04303,89953.0,89952.0,0.3608]
[1763571811686,0.04303,89953.0,89944.0,0.00016672]
[1763571811687,0.02175,89945.0,89944.0,0.00016672]
[1763571811980,0.04346,89945.0,89944.0,0.00236475]
[1763571812178,0.04346,89945.0,89944.0,0.00016672]
[1763571812475,0.04569,89937.0,89932.0,0.3608]
[1763571812671,0.04569,89937.0,89936.0,0.00233514]
[1763571812672,0.15381,89937.0,89936.0,0.00233514]
[1763571813076,0.15281,89937.0,89936.0,0.00233514]
[1763571813276,0.3608,89947.0,89936.0,0.04692514]
[1763571813476,0.04569,89937.0,89936.0,0.00233514]
[1763571813780,0.40649,89937.0,89936.0,0.00333514]
[1763571814083,0.04569,89937.0,89936.0,0.00333514]
[1763571814266,0.40649,89937.0,89936.0,0.00233514]
[1763571814670,0.40649,89937.0,89936.0,0.00013711]
[1763571814872,0.04569,89929.0,89928.0,0.00016672]
[1763571815070,0.04569,89918.0,89907.0,0.3608]
[1763571815273,0.04569,89918.0,89908.0,0.00219803]
[1763571815877,0.04569,89909.0,89908.0,0.00219803]
[1763571816181,0.1311,89909.0,89908.0,0.00219803]
[1763571816376,0.10812,89909.0,89908.0,0.00219803]
[1763571816571,0.1311,89909.0,89908.0,0.00219803]
[1763571817172,0.15381,89909.0,89908.0,0.00219803]
[1763571817382,0.04569,89901.0,89900.0,0.00016681]
[1763571817571,0.04569,89901.0,89900.0,0.00236484]
[1763571818878,0.3608,89902.0,89900.0,0.00236484]
[1763571819078,0.001,89909.0,89901.0,0.02287]
[1763571819387,0.10812,89908.0,89907.0,0.02287]
[1763571819574,0.40649,89914.0,89913.0,0.00219803]
[1763571819774,0.51461,89914.0,89913.0,0.00219803]
[1763571819975,0.15381,89914.0,89913.0,0.00219803]
[1763571820570,0.001,89914.0,89913.0,0.04678803]
[1763571820777,0.10912,89914.0,89913.0,0.04678803]
[1763571820978,0.11012,89914.0,89913.0,0.02506803]
[1763571821881,0.15581,89914.0,89913.0,0.00219803]
[1763571822382,0.10912,89914.0,89913.0,0.00219803]
[1763571822587,0.10912,89914.0,89913.0,0.04678803]
[1763571822775,0.10812,89914.0,89913.0,0.04678803]
[1763571823086,0.1321,89914.0,89913.0,0.00219803]
[1763571823686,0.15581,89914.0,89913.0,0.00219803]
[1763571824275,0.04569,89901.0,89900.0,0.00016681]
[1763571824580,0.04569,89901.0,89900.0,0.00236484]
[1763571824581,0.15381,89901.0,89900.0,0.00236484]
[1763571824785,0.1311,89901.0,89900.0,0.02523484]
[1763571825686,0.1311,89901.0,89900.0,0.00236484]
[1763571827088,0.1311,89901.0,89900.0,0.02523484]
[1763571827587,0.10812,89901.0,89900.0,0.04695484]
[1763571828290,0.3608,89918.0,89900.0,0.04695484]
[1763571828476,0.10812,89916.0,89908.0,0.3608]
[1763571828682,0.15381,89916.0,89909.0,0.00219803]
[1763571828884,0.02298,89914.0,89913.0,0.1113102]
[1763571829075,0.02298,89914.0,89913.0,0.11350823]
[1763571829476,0.04569,89914.0,89913.0,0.00219803]
[1763571831282,0.3608,89927.0,89916.0,0.04459]
[1763571831487,0.3608,89927.0,89916.0,0.04678803]
[1763571832080,0.04594626,89917.0,89908.0,0.3608]
[1763571832281,0.04594626,89917.0,89900.0,0.00016681]
[1763571832282,0.04569,89901.0,89900.0,0.00016681]
[1763571832483,0.04569,89901.0,89900.0,0.00236484]
[1763571833091,0.00125626,89917.0,89900.0,0.04695484]
[1763571833294,0.00025626,89917.0,89900.0,0.04695484]
[1763571833591,0.04569,89901.0,89900.0,0.00236484]
[1763571833989,0.04580678,89901.0,89900.0,0.00016681]
[1763571834693,0.40660678,89901.0,89900.0,0.00016681]
[1763571834995,0.40760678,89901.0,89900.0,0.00016681]
[1763571836897,0.49759966,89901.0,89900.0,0.00016681]
[1763571839995,0.49759966,89901.0,89900.0,0.00236484]
[1763571840989,0.00111678,89901.0,89900.0,0.04695484]
[1763571841393,0.04680678,89901.0,89900.0,0.04695484]
[1763571841590,0.04680678,89901.0,89900.0,0.00236484]
[1763571841788,0.04680678,89901.0,89883.0,0.03958849]
[1763571841789,0.0429,89884.0,89883.0,0.03958849]
[1763571841999,0.0132,89895.0,89864.0,0.01345]
[1763571842000,0.41727212,89893.0,89864.0,0.01345]
[1763571842194,0.20863606,89874.0,89828.0,0.07937089]
[1763571842394,0.20863606,89838.0,89810.0,0.07937089]
[1763571842702,0.20863606,89838.0,89819.0,0.04364]
[1763571842703,0.20863606,89820.0,89819.0,0.04364]
[1763571842887,0.20863606,89820.0,89818.0,0.00219803]
[1763571842888,0.02603812,89820.0,89804.0,0.01343]
[1763571843092,0.20863606,89816.0,89807.0,0.00219803]
[1763571843502,0.02763269,89815.0,89807.0,0.00219803]
[1763571843695,0.02763269,89814.0,89807.0,0.00219803]
[1763571844000,0.02763269,89813.0,89796.0,0.01343]
[1763571844309,0.02763269,89813.0,89768.0,0.01343]
[1763571844310,0.0394808,89813.0,89768.0,0.01343]
[1763571844499,0.0394808,89811.0,89768.0,0.01343]
[1763571844805,0.20863606,89792.0,89783.0,0.00219803]
[1763571844989,0.00010849,89791.0,89783.0,0.00219803]
[1763571845190,0.00010849,89791.0,89760.0,0.01343]
[1763571845389,0.00010849,89791.0,89776.0,0.01343]
[1763571845594,0.20863606,89786.0,89782.0,0.001]
[1763571845790,0.00010849,89791.0,89782.0,0.001]
[1763571845993,0.00010849,89791.0,89760.0,0.01343]
[1763571845994,0.08839298,89791.0,89760.0,0.01343]
[1763571846193,0.00010849,89791.0,89767.0,0.00219803]
[1763571846398,0.20863606,89777.0,89776.0,0.02137]
[1763571846595,0.000167,89785.0,89784.0,0.04364]
[1763571846801,0.000167,89785.0,89784.0,0.04583803]
[1763571847106,0.0789616,89825.0,89784.0,0.04583803]
[1763571847107,0.20863606,89810.0,89794.0,0.01343]
[1763571847401,0.00219803,89809.0,89795.0,0.00073266]
[1763571847594,0.20863606,89805.0,89794.0,0.01343]
[1763571847798,0.00219803,89795.0,89777.0,0.01343]
[1763571847999,0.20863606,89787.0,89777.0,0.000167]
[1763571848306,0.00219803,89778.0,89766.0,0.0012785]
[1763571848602,0.00219803,89778.0,89766.0,8.058e-05]
[1763571848603,0.41727212,89776.0,89766.0,8.058e-05]
[1763571848801,0.41727212,89776.0,89715.0,0.1115554]
[1763571848802,0.00219803,89767.0,89715.0,0.1115554]
[1763571849007,0.00219803,89767.0,89709.0,0.01343]
[1763571849008,0.00012014,89766.0,89745.0,0.00073266]
[1763571849305,0.20863606,89760.0,89745.0,0.00073266]
[1763571849509,0.00219803,89746.0,89745.0,0.04437266]
[1763571849695,0.00233539,89746.0,89745.0,0.02210266]
[1763571850102,0.00233539,89746.0,89745.0,0.04437266]
[1763571850300,0.00013736,89746.0,89745.0,0.04437266]
[1763571851200,0.00233539,89746.0,89745.0,0.00073266]
[1763571851394,0.00233539,89746.0,89726.0,0.01370863]
[1763571851599,0.00016711,89745.0,89743.0,0.01343]
[1763571851804,0.20863606,89770.0,89744.0,0.04437266]
[1763571852004,0.00219803,89769.0,89760.0,0.01343]
[1763571852308,0.29858864,89790.0,89768.0,0.04364]
[1763571852497,0.20863606,89780.0,89769.0,0.00073266]
[1763571852700,0.01144245,89801.0,89777.0,0.01343]
[1763571852701,0.00219803,89779.0,89777.0,0.01343]
[1763571852895,0.00219803,89779.0,89778.0,0.04437266]
[1763571853108,0.00224791,89779.0,89778.0,0.04437266]
[1763571854608,0.00016711,89787.0,89786.0,0.04364]
[1763571854906,0.00016711,89787.0,89786.0,0.04437266]
[1763571855109,0.00236514,89787.0,89786.0,0.00073266]
[1763571855301,0.00236514,89787.0,89777.0,0.01343]
[1763571855607,0.00236514,89787.0,89778.0,0.00073266]
[1763571857013,0.3608,89779.0,89778.0,0.00073266]
[1763571857212,0.36299803,89779.0,89769.0,0.00016711]
[1763571857411,0.3608,89770.0,89769.0,0.02226977]
[1763571857608,0.36299803,89770.0,89769.0,0.00089977]
[1763571857809,0.36299803,89770.0,89769.0,0.00016711]
[1763571858199,0.36299803,89770.0,89747.0,0.3608]
[1763571858400,0.3608,89761.0,89760.0,0.05780266]
[1763571858610,0.36299803,89761.0,89760.0,0.05780266]
[1763571858804,0.00219803,89761.0,89760.0,0.05780266]
[1763571860015,0.3618,89770.0,89769.0,0.02137]
[1763571860308,0.45205361,89770.0,89760.0,0.01343]
[1763571860509,0.3608,89761.0,89760.0,0.01416266]
[1763571860711,0.36299803,89761.0,89760.0,0.01343]
[1763571861013,0.36299803,89761.0,89747.0,0.3608]
[1763571861314,0.00219803,89761.0,89760.0,0.05707]
[1763571861514,0.00219803,89761.0,89760.0,0.05780266]
[1763571861925,0.3608,89780.0,89779.0,0.02137]
[1763571862209,0.3608,89780.0,89779.0,0.04437266]
[1763571862210,0.36299803,89780.0,89779.0,0.04437266]
[1763571862517,0.36299803,89780.0,89779.0,0.00073266]
[1763571863019,0.36299803,89780.0,89779.0,0.04437266]
[1763571863315,0.36299803,89780.0,89779.0,0.00073266]
[1763571863817,0.00219803,89780.0,89779.0,0.00073266]
[1763571864305,0.00319803,89780.0,89779.0,0.00073266]
[1763571864506,0.00319803,89780.0,89771.0,0.00016711]
[1763571864707,0.3608,89773.0,89739.0,0.3608]
[1763571864918,0.3608,89759.0,89744.0,0.00073266]
[1763571865116,0.00219803,89758.0,89744.0,0.00073266]
[1763571865316,0.00219803,89758.0,89757.0,0.04486]
[1763571865613,0.00219803,89758.0,89757.0,0.04559266]
[1763571865919,0.00219803,89758.0,89757.0,0.00073266]
[1763571866306,0.00219803,89758.0,89738.0,0.3608]
[1763571866502,0.00219803,89758.0,89757.0,0.04559266]
[1763571867913,0.00319803,89758.0,89757.0,0.04559266]
[1763571868613,0.00319803,89758.0,89740.0,0.3608]
[1763571868807,0.00319803,89758.0,89727.0,0.3608]
[1763571868808,0.3608,89746.0,89727.0,0.3608]
[1763571869004,0.26378543,89740.0,89729.0,0.00073266]
[1763571869208,0.00219803,89730.0,89729.0,0.02374266]
[1763571869409,0.00219803,89730.0,89729.0,0.04559266]
[1763571870411,0.00219803,89730.0,89729.0,0.00073266]
[1763571870609,0.00219803,89730.0,89718.0,0.3608]
[1763571870809,0.00219803,89730.0,89686.0,0.00027875]
[1763571871010,0.00219803,89730.0,89726.0,0.00101129]
[1763571871011,0.02708277,89729.0,89726.0,0.00101129]
[1763571871314,0.00219803,89727.0,89726.0,0.00101129]
[1763571871509,0.029349,89727.0,89726.0,0.00027863]
[1763571871718,0.390149,89727.0,89726.0,0.00027863]
[1763571872307,0.390149,89727.0,89701.0,0.3608]
[1763571872603,0.390149,89727.0,89713.0,0.00073266]
[1763571872604,0.3608,89715.0,89713.0,0.00073266]
[1763571872804,0.029349,89714.0,89713.0,0.00073266]
[1763571873816,0.029349,89714.0,89713.0,0.04481266]
[1763571874011,0.02715097,89714.0,89713.0,0.40561266]
[1763571874218,0.00016711,89723.0,89722.0,0.04408]
[1763571874521,0.00016711,89723.0,89722.0,0.04481266]
[1763571875213,0.3608,89735.0,89734.0,0.04408]
[1763571875517,0.38786449,89735.0,89734.0,0.04481266]
[1763571875714,0.02706449,89735.0,89734.0,0.04481266]
[1763571875916,0.03980995,89748.0,89747.0,0.04408]
[1763571876120,0.02926639,89748.0,89747.0,0.04481266]
[1763571876610,0.0420405,89748.0,89747.0,0.04481266]
[1763571876811,0.04204242,89748.0,89747.0,0.04481266]
[1763571877017,0.02706836,89748.0,89747.0,0.04481266]
[1763571877207,0.00016711,89756.0,89755.0,0.04408]
[1763571877407,0.03984439,89769.0,89768.0,0.04408]
[1763571877612,0.0292873,89769.0,89768.0,0.04481266]
[1763571878014,0.42993169,89769.0,89768.0,0.04481266]
[1763571878718,0.3900873,89769.0,89768.0,0.04481266]
[1763571879022,0.3900873,89769.0,89760.0,0.01302711]
[1763571879222,0.3608,89761.0,89760.0,0.00016711]
[1763571879419,0.3900873,89761.0,89760.0,0.00016711]
[1763571880020,0.3900873,89761.0,89760.0,0.01302711]
[1763571880226,0.3900873,89761.0,89760.0,0.01375977]
[1763571880524,0.3910873,89761.0,89760.0,0.00016711]
[1763571880718,0.45090331,89761.0,89760.0,0.00016711]
[1763571880921,0.3910873,89761.0,89760.0,0.00016711]
[1763571881225,0.45090331,89761.0,89760.0,0.00016711]
[1763571881522,0.3910873,89761.0,89760.0,0.00016711]
[1763571881923,0.3900873,89761.0,89760.0,0.00016711]
[1763571882128,0.3920873,89761.0,89760.0,0.00016711]
[1763571882321,0.3920873,89761.0,89760.0,0.01302711]
[1763571882619,0.3920873,89761.0,89760.0,0.01375977]
[1763571882822,0.3920873,89761.0,89760.0,0.00016711]
[1763571884122,0.4710489,89761.0,89760.0,0.00016711]
[1763571884717,0.4710489,89761.0,89760.0,0.01302711]
[1763571885119,0.3910873,89761.0,89760.0,0.01302711]
[1763571885322,0.3910873,89761.0,89760.0,0.00016711]
[1763571886031,0.3910873,89761.0,89730.0,0.01286]
[1763571886220,0.3608,89733.0,89731.0,0.00073266]
[1763571886418,0.0292873,89732.0,89730.0,0.01286]
[1763571886624,0.38788927,89731.0,89712.0,0.01343]
[1763571886827,0.03986826,89717.0,89713.0,0.00073266]
[1763571887021,0.36299803,89714.0,89713.0,0.00073266]
[1763571887223,0.42995556,89714.0,89712.0,0.01343]
[1763571887437,0.38788927,89713.0,89712.0,0.01343]
[1763571887727,0.3900873,89713.0,89712.0,0.0032318]
[1763571888318,0.3900873,89713.0,89708.0,0.00010616]
[1763571888531,0.05980239,89711.0,89708.0,0.00010616]
[1763571888721,0.36299803,89713.0,89708.0,0.04491882]
[1763571888722,0.04201646,89709.0,89708.0,0.04491882]
[1763571888924,0.0292873,89709.0,89708.0,0.04491882]
[1763571889523,0.0292873,89709.0,89708.0,0.00083882]
[1763571889826,0.0292873,89709.0,89708.0,0.00010616]
[1763571891237,0.0302873,89709.0,89708.0,0.00010616]
[1763571891934,0.0302873,89709.0,89708.0,0.00083882]
[1763571892119,0.0302873,89709.0,89708.0,0.00010616]
[1763571892321,0.0302873,89709.0,89672.0,0.3608]
[1763571892620,0.03978701,89693.0,89691.0,0.04408]
[1763571892926,0.03978584,89699.0,89698.0,0.04408]
[1763571893132,0.06874941,89699.0,89698.0,0.04481266]
[1763571893331,0.02906973,89699.0,89698.0,0.04481266]
[1763571894131,0.03978584,89710.0,89709.0,0.02133]
[1763571894445,0.02677462,89710.0,89709.0,0.04627803]
[1763571894826,0.05007462,89710.0,89709.0,0.00219803]
[1763571895240,0.05007462,89710.0,89701.0,0.00016721]
[1763571895537,0.0233,89702.0,89701.0,0.00236524]
[1763571895735,0.3841,89702.0,89701.0,0.00236524]
[1763571896133,0.3608,89702.0,89701.0,0.04644524]
[1763571898243,0.3618,89702.0,89701.0,0.04644524]
[1763571898836,0.3851,89702.0,89701.0,0.00236524]
[1763571899036,0.3851,89702.0,89701.0,0.00016721]
[1763571899240,0.0243,89702.0,89701.0,0.00016721]
[1763571899537,0.001,89702.0,89701.0,0.04644524]
[1763571899739,0.01265,89702.0,89701.0,0.02511524]
[1763571900043,0.01265,89702.0,89701.0,0.00016721]
[1763571900044,0.3851,89702.0,89701.0,0.00016721]
[1763571900248,0.42490263,89702.0,89701.0,0.00016721]
[1763571900453,0.42491564,89702.0,89701.0,0.00016721]
[1763571900742,0.3851,89702.0,89701.0,0.00016721]
[1763571900940,0.3851,89702.0,89701.0,0.00236524]
[1763571901331,0.3851,89702.0,89701.0,0.00016721]
[1763571901533,0.3618,89702.0,89701.0,0.04644524]
[1763571901836,0.3851,89702.0,89701.0,0.00236524]
[1763571902441,0.3618,89702.0,89701.0,0.04616524]
[1763571902835,0.3618,89702.0,89701.0,0.00016721]
[1763571902836,0.3851,89702.0,89701.0,0.00016721]
[1763571903143,0.3851,89702.0,89701.0,0.00236524]
[1763571903343,0.3618,89702.0,89701.0,0.04616524]
[1763571904039,0.3608,89702.0,89701.0,0.04616524]
[1763571904243,1.50016721,89718.0,89717.0,0.0438]
[1763571904448,1.50016721,89718.0,89717.0,0.04599803]
[1763571905332,1.50016721,89718.0,89717.0,0.00219803]
[1763571905533,1.50016721,89718.0,89701.0,0.00016721]
[1763571905743,1.50016721,89718.0,89702.0,0.00219803]
[1763571905744,0.3608,89708.0,89702.0,0.00219803]
[1763571906337,0.0233,89703.0,89702.0,0.00219803]
[1763571906533,0.3608,89708.0,89702.0,0.04599803]
[1763571906738,0.02649776,89707.0,89702.0,0.04599803]
[1763571906940,0.3608,89708.0,89701.0,0.00016721]
[1763571906941,0.0233,89702.0,89701.0,0.00016721]
[1763571907549,0.0233,89702.0,89686.0,0.00027875]
[1763571907550,0.0233,89687.0,89686.0,0.00027875]
[1763571907734,0.3841,89687.0,89686.0,0.00027875]
[1763571908146,0.41058748,89687.0,89686.0,0.00027875]
[1763571908337,0.3841,89687.0,89686.0,0.00247678]
[1763571908532,0.36096721,89695.0,89686.0,0.15786868]
[1763571908733,0.36096721,89695.0,89694.0,0.02181]
[1763571908942,0.36096721,89695.0,89694.0,0.02400803]
[1763571909138,0.38394721,89695.0,89694.0,0.00219803]
[1763571909344,0.38394721,89695.0,89694.0,0.04599803]
[1763571909345,0.38747191,89695.0,89694.0,0.04599803]
[1763571909642,0.36096721,89695.0,89694.0,0.04599803]
[1763571910044,0.00016721,89695.0,89694.0,0.15758083]
[1763571910245,0.3608,89715.0,89714.0,0.0438]
[1763571910543,0.3608,89724.0,89723.0,0.0438]
[1763571910753,0.38733499,89724.0,89723.0,0.04599803]
[1763571911851,0.38733499,89724.0,89723.0,0.02400803]
[1763571912042,0.41063499,89724.0,89723.0,0.00219803]
[1763571912942,0.41163499,89724.0,89723.0,0.00219803]
[1763571913248,0.0233,89716.0,89715.0,0.00016721]
[1763571913440,0.3841,89716.0,89715.0,0.00016721]
[1763571913641,0.41063499,89716.0,89715.0,0.00016721]
[1763571913942,0.01149,89694.0,89685.0,0.01327]
[1763571914249,0.38378,89687.0,89675.0,0.3608]
[1763571914436,0.39883563,89687.0,89686.0,0.00247678]
[1763571914636,0.39883563,89687.0,89686.0,0.04627678]
[1763571914637,0.3608,89687.0,89686.0,0.04627678]
[1763571914846,0.38378,89687.0,89686.0,0.00027875]
[1763571915045,0.41032551,89687.0,89686.0,0.00027875]
[1763571915350,0.41032551,89687.0,89686.0,0.00247678]
[1763571916244,0.39883551,89687.0,89686.0,0.00247678]
[1763571916440,0.38734551,89687.0,89686.0,0.02428678]
[1763571916644,0.38734551,89687.0,89686.0,0.04627678]
[1763571916941,0.38734551,89687.0,89686.0,0.15786948]
[1763571917247,0.3608,89687.0,89686.0,0.15786948]
[1763571917444,0.3608,89687.0,89686.0,0.04627678]
[1763571917636,0.41036842,89687.0,89686.0,0.00247678]
[1763571917837,0.41036842,89687.0,89686.0,0.00027875]
[1763571918044,0.04956842,89687.0,89686.0,0.00027875]
[1763571918349,0.02298,89671.0,89649.0,8.946e-05]
[1763571918552,0.02658842,89670.0,89664.0,0.00219803]
[1763571918848,0.02242,89665.0,89649.0,8.946e-05]
[1763571919053,0.02242,89665.0,89653.0,0.00219803]
[1763571919054,0.01121,89654.0,89653.0,0.00219803]
[1763571919254,0.02242,89650.0,89649.0,8.946e-05]
[1763571919950,0.04897537,89650.0,89649.0,8.946e-05]
[1763571920249,0.02224,89647.0,89625.0,0.01327]
[1763571920457,0.02655537,89650.0,89626.0,0.00219803]
[1763571920458,0.0001673,89645.0,89626.0,0.00219803]
[1763571920646,0.02655537,89644.0,89640.0,0.01327]
[1763571920945,0.0001673,89645.0,89644.0,0.0438]
[1763571921149,0.00025676,89645.0,89644.0,0.04599803]
[1763571922556,0.03992942,89670.0,89644.0,0.00219803]
[1763571922847,0.02646123,89669.0,89644.0,0.00219803]
[1763571923051,0.02646123,89668.0,89644.0,0.00219803]
[1763571923255,0.02646123,89667.0,89646.0,0.1116418]
[1763571923453,0.02646123,89666.0,89665.0,0.02181]
[1763571923748,0.03992942,89690.0,89689.0,0.0438]
[1763571923942,0.02645655,89690.0,89689.0,0.04599803]
[1763571924140,0.0001673,89698.0,89689.0,0.04599803]
[1763571924351,0.02024,89690.0,89689.0,0.00219803]
[1763571924556,0.0001673,89698.0,89697.0,0.0438]
[1763571924852,0.0001673,89698.0,89697.0,0.04599803]
[1763571925052,0.02628462,89698.0,89697.0,0.02400803]
[1763571925257,0.04652462,89698.0,89697.0,0.00219803]
[1763571925454,0.04652462,89698.0,89681.0,0.0001673]
[1763571925643,0.02024,89683.0,89682.0,0.00219803]
[1763571925952,0.0001673,89698.0,89682.0,0.04626803]
[1763571926256,0.01012,89683.0,89682.0,0.00219803]
[1763571926455,0.0011673,89698.0,89682.0,0.02493803]
[1763571926641,0.02611858,89697.0,89682.0,0.02493803]
[1763571926843,0.21015356,89692.0,89682.0,0.02493803]
[1763571927046,0.02024,89683.0,89682.0,0.00219803]
[1763571927255,0.21015356,89692.0,89682.0,0.02493803]
[1763571927450,0.02612207,89691.0,89682.0,0.02493803]
[1763571927758,0.01012,89683.0,89682.0,0.00219803]
[1763571927953,0.02024,89683.0,89682.0,0.00219803]
[1763571928148,0.02024,89682.0,89681.0,0.0001673]
[1763571928456,0.04637397,89682.0,89648.0,0.1249099]
[1763571928654,0.0797561,89700.0,89648.0,0.1249099]
[1763571928655,0.21015356,89674.0,89654.0,0.1116324]
[1763571928959,0.21015356,89680.0,89655.0,0.00219803]
[1763571929158,0.3608,89663.0,89655.0,0.00219803]
[1763571930163,0.3608,89663.0,89662.0,0.02274]
[1763571930461,0.38104,89663.0,89662.0,0.00219803]
[1763571930950,0.38104,89663.0,89648.0,0.01327]
[1763571931151,0.02024,89650.0,89649.0,0.00219803]
[1763571931352,0.3608,89654.0,89649.0,0.00219803]
[1763571931552,0.05968052,89671.0,89655.0,0.0139]
[1763571931553,0.3608,89671.0,89655.0,0.0139]
[1763571931757,0.3608,89671.0,89667.0,0.04736803]
[1763571931962,0.3608,89673.0,89667.0,0.04736803]
[1763571932261,0.3608,89684.0,89667.0,0.04736803]
[1763571932463,0.3608,89684.0,89668.0,0.1116143]
[1763571932765,0.3608,89684.0,89683.0,0.04736803]
[1763571933063,0.3608,89693.0,89683.0,0.04736803]
[1763571933064,0.3608,89693.0,89692.0,0.05806]
[1763571933255,0.3608,89693.0,89692.0,0.06025803]
[1763571933451,0.4071585,89693.0,89692.0,0.00219803]
[1763571934060,0.3869185,89693.0,89692.0,0.01508803]
[1763571934358,0.3869185,89693.0,89692.0,0.00219803]
[1763571934561,0.3869185,89693.0,89684.0,0.0001673]
[1763571934562,0.02024,89685.0,89684.0,0.0001673]
[1763571934768,0.4071585,89685.0,89684.0,0.0001673]
[1763571935064,0.3869185,89685.0,89684.0,0.04753533]
[1763571935454,0.3869185,89685.0,89684.0,0.02464533]
[1763571935664,0.3869185,89685.0,89684.0,0.04753533]
[1763571935665,0.0261185,89685.0,89684.0,0.04753533]
[1763571935849,0.3608,89693.0,89684.0,0.04753533]
[1763571936055,0.3618,89685.0,89684.0,0.04753533]
[1763571936255,0.40815807,89685.0,89684.0,0.00236533]
[1763571936654,0.39803807,89685.0,89684.0,0.00236533]
[1763571936850,0.40815807,89685.0,89684.0,0.0001673]
[1763571937349,0.40815807,89685.0,89666.0,0.3608]
[1763571937350,0.80815807,89685.0,89657.0,0.3608]
[1763571937557,0.80815807,89685.0,89615.0,0.07902751]
[1763571937558,0.02024,89659.0,89615.0,0.07902751]
[1763571937759,0.01012,89656.0,89655.0,0.00219803]
[1763571938268,0.03620871,89656.0,89635.0,0.111655]
[1763571938453,0.01012,89656.0,89655.0,0.00219803]
[1763571938659,0.02607803,89656.0,89655.0,0.04736803]
[1763571939061,0.38687803,89656.0,89655.0,0.04736803]
[1763571940065,0.3608,89656.0,89655.0,0.04736803]
[1763571940264,0.39799151,89656.0,89655.0,0.00219803]
[1763571940763,0.40811151,89656.0,89640.0,0.3608]
[1763571941066,0.3608,89647.0,89642.0,0.00219803]
[1763571941262,0.3618,89656.0,89646.0,0.02228]
[1763571941458,0.3618,89656.0,89642.0,0.00219803]
[1763571941459,0.0260805,89655.0,89647.0,0.00219803]
[1763571941663,0.3608,89648.0,89647.0,0.00219803]
[1763571941959,0.38688644,89648.0,89647.0,0.00219803]
[1763571942154,0.40712644,89648.0,89647.0,0.00219803]
[1763571942355,0.40712644,89648.0,89632.0,0.01289]
[1763571942555,0.02608644,89647.0,89633.0,0.00219803]
[1763571942959,0.3608,89639.0,89633.0,0.00219803]
[1763571943467,0.02024,89634.0,89633.0,0.00219803]
[1763571944264,0.3608,89639.0,89633.0,0.02447803]
[1763571945266,0.3608,89639.0,89633.0,0.00219803]
[1763571946355,0.0001673,89645.0,89644.0,0.02228]
[1763571946564,0.0001673,89645.0,89644.0,0.04736803]
[1763571947166,0.0001673,89645.0,89629.0,0.38308]
[1763571947364,0.0102873,89645.0,89644.0,0.00219803]
[1763571947664,0.0001673,89645.0,89644.0,0.04736803]
[1763571947866,0.3812073,89645.0,89626.0,0.3608]
[1763571948071,0.3608,89637.0,89636.0,0.04517]
[1763571948261,0.3609673,89645.0,89644.0,0.02228]
[1763571948455,0.3609673,89645.0,89644.0,0.04736803]
[1763571949967,0.3609673,89645.0,89644.0,0.02447803]
[1763571950170,0.0001673,89645.0,89644.0,0.04736803]
[1763571951984,0.3609673,89645.0,89644.0,0.04736803]
[1763571952268,0.0001673,89645.0,89644.0,0.04736803]
[1763571952863,0.3608,89664.0,89653.0,0.04517]
[1763571953172,0.08915945,89664.0,89663.0,0.04736803]
[1763571953376,0.38138,89664.0,89663.0,0.00219803]
[1763571954077,0.3618,89664.0,89663.0,0.04736803]
[1763571954277,0.47130733,89664.0,89663.0,0.02447803]
[1763571954465,0.47130733,89664.0,89663.0,0.00219803]
[1763571955262,0.02058,89656.0,89655.0,0.0001673]
[1763571955465,0.01029,89656.0,89655.0,0.02464533]
[1763571955665,0.45072733,89664.0,89656.0,0.01289]
[1763571955866,0.47130733,89664.0,89663.0,0.00219803]
[1763571956068,0.47687298,89664.0,89663.0,0.04736803]
[1763571956371,0.38794565,89664.0,89663.0,0.04736803]
[1763571956767,0.3618,89664.0,89663.0,0.04736803]
[1763571956974,0.3608,89664.0,89663.0,0.04736803]
[1763571957967,0.3618,89664.0,89663.0,0.04736803]
[1763571959283,0.001,89664.0,89663.0,0.04736803]
[1763571959778,0.0001673,89672.0,89671.0,0.04517]
[1763571959966,0.0001673,89672.0,89671.0,0.04736803]
[1763571960165,0.3712573,89672.0,89671.0,0.04736803]
[1763571960369,0.40770934,89672.0,89671.0,0.00219803]
[1763571960979,0.02058,89656.0,89655.0,0.0001673]
[1763571961187,0.76834204,89656.0,89623.0,0.3608]
[1763571961484,0.3608,89631.0,89630.0,0.04517]
[1763571961673,0.3608,89631.0,89630.0,0.04736803]
[1763571963377,0.38238001,89631.0,89609.0,0.01289]
[1763571963578,0.02058,89621.0,89620.0,0.00073266]
[1763571963783,0.38357803,89621.0,89620.0,0.00073266]
[1763571964278,0.01029,89610.0,89596.0,0.01289]
[1763571964580,0.01029,89610.0,89609.0,0.02227]
[1763571964887,0.02058,89607.0,89596.0,0.01289]
[1763571965076,0.02058,89607.0,89606.0,0.04529166]
[1763571965077,0.00219803,89607.0,89606.0,0.04529166]
[1763571965468,0.0001673,89617.0,89616.0,0.02227]
[1763571965678,0.00236533,89617.0,89616.0,0.04501266]
[1763571966484,0.0001673,89617.0,89616.0,0.04501266]
[1763571966670,0.0011673,89617.0,89616.0,0.04501266]